bitfinex/quotes_BTCUSD_20230114
["timestamp","ask_amount","ask_price","bid_price","bid_amount"]
[1673702348444,7.28202169,20840.0,20839.0,0.95707069]
[1673702348691,7.28202169,20840.0,20839.0,0.479869]
[1673702348957,7.0,20840.0,20837.0,0.479903]
[1673702349200,7.27991922,20840.0,20837.0,0.479903]
[1673702349454,7.24750721,20840.0,20838.0,0.75161898]
[1673702349706,7.24750721,20840.0,20839.0,0.959738]
[1673702349707,7.0,20840.0,20839.0,0.959738]
[1673702349948,7.0,20840.0,20839.0,1.74680622]
[1673702350190,7.0,20840.0,20839.0,1.9971396]
[1673702350946,7.0,20840.0,20839.0,0.67925723]
[1673702351462,7.0,20840.0,20837.0,0.479897]
[1673702351719,7.0,20840.0,20836.0,0.52852456]
[1673702351720,7.03241201,20840.0,20836.0,0.52852456]
[1673702351979,0.03241201,20839.0,20836.0,0.04860156]
[1673702352460,0.33241201,20839.0,20836.0,0.04860156]
[1673702352699,0.1,20838.0,20836.0,0.04860156]
[1673702352956,0.1,20838.0,20833.0,0.59251411]
[1673702353201,0.1,20838.0,20833.0,1.11897348]
[1673702353202,0.03241201,20837.0,20833.0,1.11897348]
[1673702353450,0.03241201,20837.0,20833.0,0.04925768]
[1673702353939,0.51232701,20837.0,20833.0,0.04925768]
[1673702354922,0.479915,20837.0,20833.0,0.04925768]
[1673702355201,0.32481992,20836.0,20833.0,0.23998363]
[1673702355453,0.03241201,20836.0,20833.0,0.04925768]
[1673702355686,0.579916,20837.0,20833.0,0.04925768]
[1673702355953,0.32846977,20836.0,20833.0,0.23998363]
[1673702356200,0.1,20836.0,20833.0,0.04925768]
[1673702356434,0.91235401,20836.0,20833.0,0.04925768]
[1673702356682,0.91235401,20836.0,20828.0,0.480104]
[1673702356683,0.09724603,20832.0,20828.0,0.77098108]
[1673702356913,0.03241201,20831.0,20828.0,0.77098108]
[1673702357154,0.03241201,20830.0,20829.0,0.04996994]
[1673702357413,0.09724603,20832.0,20828.0,0.29087708]
[1673702357657,0.09724603,20832.0,20827.0,0.480131]
[1673702357658,0.12965804,20832.0,20827.0,0.480131]
[1673702357906,0.35876206,20831.0,20827.0,0.2393746]
[1673702358140,0.35876206,20831.0,20825.0,0.72012743]
[1673702358141,0.03241201,20831.0,20825.0,0.72012743]
[1673702358378,0.03241201,20830.0,20826.0,0.30481076]
[1673702359160,0.03241201,20830.0,20825.0,0.480183]
[1673702359392,0.03241201,20830.0,20825.0,0.31734167]
[1673702359654,0.13241201,20830.0,20825.0,0.31734167]
[1673702359897,0.25632969,20830.0,20825.0,0.31734167]
[1673702360134,0.25632969,20830.0,20824.0,0.49703718]
[1673702360135,0.03241201,20829.0,20824.0,0.01683518]
[1673702360384,0.51254601,20828.0,20824.0,0.01683518]
[1673702360879,0.1,20827.0,20824.0,0.01683518]
[1673702361131,0.61256601,20827.0,20824.0,0.01683518]
[1673702361392,0.580154,20827.0,20824.0,0.01683518]
[1673702361883,0.480154,20827.0,20824.0,0.01683518]
[1673702362919,0.480139,20828.0,20824.0,0.01683518]
[1673702363172,0.30566028,20826.0,20824.0,0.01683518]
[1673702365124,0.52836161,20829.0,20825.0,0.30624982]
[1673702365125,0.32946603,20829.0,20825.0,0.30624982]
[1673702365381,0.32946603,20829.0,20826.0,0.27057838]
[1673702365630,0.32946603,20829.0,20827.0,0.31796245]
[1673702365865,0.04824761,20829.0,20827.0,0.31796245]
[1673702366135,0.04824761,20829.0,20827.0,0.79810745]
[1673702366454,0.28886978,20831.0,20827.0,0.79810745]
[1673702366725,0.09724603,20832.0,20827.0,0.5086884]
[1673702366726,0.31726201,20830.0,20827.0,0.5086884]
[1673702366984,0.32773119,20828.0,20826.0,0.56001743]
[1673702367247,0.32773119,20828.0,20826.0,0.480165]
[1673702368254,0.32773119,20828.0,20826.0,0.475165]
[1673702368505,0.65841603,20832.0,20826.0,0.75931794]
[1673702368791,0.27520457,20831.0,20827.0,0.4643907]
[1673702369008,0.27626487,20831.0,20826.0,0.475165]
[1673702369261,0.33241201,20830.0,20824.0,0.01683518]
[1673702369508,0.03241201,20829.0,20824.0,0.01683518]
[1673702369749,0.48009,20830.0,20824.0,0.01683518]
[1673702369750,0.03241201,20828.0,20824.0,0.01683518]
[1673702370246,0.03241201,20827.0,20824.0,0.01683518]
[1673702371241,0.780157,20827.0,20824.0,0.01683518]
[1673702371483,0.480157,20827.0,20824.0,0.01683518]
[1673702372460,0.24603482,20826.0,20824.0,0.01683518]
[1673702372941,0.24603482,20826.0,20824.0,0.30748405]
[1673702373182,0.24603482,20826.0,20825.0,0.1092684]
[1673702373437,0.9769,20828.0,20825.0,0.1092684]
[1673702373438,1.25959356,20828.0,20825.0,0.35361847]
[1673702373683,1.25959356,20828.0,20825.0,0.54434442]
[1673702373962,1.25959356,20828.0,20824.0,0.01683518]
[1673702373963,1.48944401,20828.0,20824.0,0.01683518]
[1673702374203,0.13075345,20827.0,20824.0,0.01683518]
[1673702374436,0.1,20825.0,20824.0,0.01683518]
[1673702374679,0.480169,20826.0,20824.0,0.01683518]
[1673702375211,0.95210057,20826.0,20824.0,0.01683518]
[1673702375442,0.95210057,20826.0,20821.0,0.00269073]
[1673702375443,0.5563012,20825.0,20821.0,0.00269073]
[1673702375696,0.98453579,20824.0,20821.0,0.00269073]
[1673702376188,0.95212378,20824.0,20821.0,0.00269073]
[1673702376688,0.98453579,20824.0,20821.0,0.00269073]
[1673702376920,0.95212378,20824.0,20821.0,0.00269073]
[1673702377196,1.25180124,20824.0,20821.0,0.00269073]
[1673702377429,0.480219,20824.0,20821.0,0.00269073]
[1673702377925,0.95227695,20824.0,20821.0,0.00269073]
[1673702378398,0.1,20822.0,20821.0,0.00269073]
[1673702378650,0.580261,20822.0,20821.0,0.00269073]
[1673702378897,0.1,20821.0,20820.0,0.00830031]
[1673702379165,0.480284,20821.0,20820.0,0.00830031]
[1673702379399,0.780284,20821.0,20820.0,0.00830031]
[1673702379633,1.25189747,20821.0,20820.0,0.00830031]
[1673702379886,1.25189747,20821.0,20820.0,3.1e-07]
[1673702379887,1.35189747,20821.0,20820.0,3.1e-07]
[1673702380119,1.35189747,20821.0,20819.0,0.01619282]
[1673702380120,1.66391332,20821.0,20819.0,0.01619282]
[1673702380364,0.57118843,20820.0,20819.0,0.01619282]
[1673702380623,1.35149543,20820.0,20819.0,0.01619282]
[1673702380852,1.1635326,20820.0,20819.0,0.01619282]
[1673702381097,0.04240053,20816.0,20815.0,0.01690966]
[1673702381356,0.07481254,20816.0,20815.0,0.01690966]
[1673702381864,0.52279953,20816.0,20815.0,0.01690966]
[1673702382105,0.82279953,20816.0,20815.0,0.01690966]
[1673702382346,0.29359113,20816.0,20815.0,9.66e-06]
[1673702383085,0.77405013,20816.0,20815.0,9.66e-06]
[1673702383580,0.80646214,20816.0,20815.0,9.66e-06]
[1673702383810,0.92784013,20816.0,20815.0,9.66e-06]
[1673702384063,0.04246053,20816.0,20815.0,9.66e-06]
[1673702384319,0.04246053,20816.0,20815.0,0.99571755]
[1673702384583,0.04246053,20816.0,20815.0,1.63883487]
[1673702384842,0.04246053,20816.0,20815.0,1.76922692]
[1673702385082,0.04246053,20816.0,20815.0,1.27875135]
[1673702385347,0.04246053,20816.0,20815.0,0.80154966]
[1673702386546,0.04246053,20816.0,20815.0,9.66e-06]
[1673702388313,0.04246053,20816.0,20815.0,1.1483593]
[1673702388564,0.04246053,20816.0,20815.0,1.27875135]
[1673702388824,0.04246053,20816.0,20815.0,1.54490423]
[1673702389081,0.04246053,20816.0,20815.0,0.80154966]
[1673702389082,0.04240053,20816.0,20815.0,0.80154966]
[1673702389335,0.04240053,20816.0,20815.0,1.67875135]
[1673702390113,5.3e-07,20816.0,20815.0,1.67875135]
[1673702390360,5.3e-07,20816.0,20815.0,2.44063833]
[1673702390615,5.3e-07,20816.0,20815.0,2.41555226]
[1673702391364,5.3e-07,20816.0,20815.0,2.39760331]
[1673702391603,5.3e-07,20816.0,20815.0,2.34760331]
[1673702392132,5.3e-07,20816.0,20815.0,2.29456829]
[1673702392704,5.3e-07,20816.0,20815.0,2.33193904]
[1673702392967,5.3e-07,20816.0,20815.0,2.66144261]
[1673702393213,5.3e-07,20816.0,20815.0,2.6127493]
[1673702393710,5.3e-07,20816.0,20815.0,1.85444573]
[1673702394249,0.03241254,20816.0,20815.0,1.27875135]
[1673702394493,0.03241254,20816.0,20815.0,1.17875135]
[1673702394494,5.3e-07,20816.0,20815.0,1.17875135]
[1673702395497,5.3e-07,20816.0,20815.0,1.74189133]
[1673702395751,5.3e-07,20816.0,20815.0,2.48199971]
[1673702396743,5.3e-07,20816.0,20815.0,2.17635973]
[1673702396992,5.3e-07,20816.0,20815.0,2.70097609]
[1673702397743,5.3e-07,20816.0,20815.0,2.55771492]
[1673702398981,5.3e-07,20816.0,20815.0,2.22505304]
[1673702399239,5.3e-07,20816.0,20815.0,2.17495776]
[1673702400033,5.3e-07,20816.0,20815.0,1.88345776]
[1673702400556,5.3e-07,20816.0,20815.0,1.83476445]
[1673702402127,5.3e-07,20816.0,20815.0,1.44475135]
[1673702402386,5.3e-07,20816.0,20815.0,1.31635135]
[1673702403394,5.3e-07,20816.0,20815.0,1.71373797]
[1673702403646,5.3e-07,20816.0,20815.0,1.66504466]
[1673702404671,5.3e-07,20816.0,20815.0,1.80830583]
[1673702404909,5.3e-07,20816.0,20815.0,2.282408]
[1673702405156,5.3e-07,20816.0,20815.0,2.61478894]
[1673702405398,5.3e-07,20816.0,20815.0,2.89190345]
[1673702405887,5.3e-07,20816.0,20815.0,2.66465103]
[1673702406134,5.3e-07,20816.0,20815.0,3.07264297]
[1673702406615,5.3e-07,20816.0,20815.0,2.92462846]
[1673702407108,0.00490033,20823.0,20817.0,6e-05]
[1673702407369,0.00490033,20823.0,20819.0,0.62039565]
[1673702407604,0.00490033,20823.0,20822.0,0.1283]
[1673702407845,0.00490033,20823.0,20822.0,2.45231864]
[1673702408103,0.01605205,20826.0,20823.0,0.1]
[1673702408347,0.01605205,20826.0,20824.0,2.43803564]
[1673702408591,0.01605205,20826.0,20825.0,0.97627725]
[1673702408827,0.01605205,20826.0,20825.0,1.46496925]
[1673702409065,0.01605205,20826.0,20825.0,0.98776756]
[1673702409320,0.01605205,20826.0,20825.0,0.695464]
[1673702410282,0.01605205,20826.0,20825.0,0.995464]
[1673702410532,0.01605205,20826.0,20825.0,0.695464]
[1673702410764,0.01605205,20826.0,20825.0,1.73963935]
[1673702411002,0.01605205,20826.0,20825.0,1.57266569]
[1673702411244,0.01605205,20826.0,20825.0,2.0708725]
[1673702411484,0.01605205,20826.0,20825.0,1.83597526]
[1673702411738,0.01605205,20826.0,20825.0,1.43072803]
[1673702412023,0.01605205,20826.0,20825.0,0.95352634]
[1673702413299,0.01605205,20826.0,20825.0,0.480192]
[1673702413300,0.32964722,20826.0,20825.0,0.480192]
[1673702416792,0.04846406,20826.0,20824.0,0.02308721]
[1673702417050,0.04846406,20826.0,20818.0,0.27229396]
[1673702417051,0.1,20825.0,20818.0,0.24444741]
[1673702417300,0.51940245,20824.0,20819.0,0.53359989]
[1673702417552,0.03241201,20823.0,20819.0,0.05328389]
[1673702417804,0.03241201,20823.0,20820.0,0.28346069]
[1673702418058,0.04869564,20824.0,20821.0,0.08170736]
[1673702418560,0.23965542,20823.0,20821.0,0.08170736]
[1673702418803,0.23965542,20823.0,20821.0,0.75271631]
[1673702419095,0.23965542,20823.0,20821.0,0.56199036]
[1673702419714,0.23965542,20823.0,20821.0,0.85676233]
[1673702419958,0.23965542,20823.0,20822.0,0.13370633]
[1673702420211,0.23965542,20823.0,20822.0,0.61396733]
[1673702420454,0.23965542,20823.0,20822.0,0.480261]
[1673702421698,0.23965542,20823.0,20821.0,0.77505497]
[1673702421964,0.23965542,20823.0,20820.0,0.480301]
[1673702422210,0.23965542,20823.0,20819.0,0.81404364]
[1673702422459,0.27206743,20823.0,20820.0,0.29825379]
[1673702422729,0.23965542,20823.0,20820.0,0.29825379]
[1673702422971,0.23965542,20823.0,20819.0,0.81133379]
[1673702423281,0.27206743,20823.0,20819.0,0.81133379]
[1673702423485,0.29352475,20822.0,20819.0,0.81133379]
[1673702423987,0.06500569,20822.0,20817.0,0.48042]
[1673702424246,0.06500569,20822.0,20817.0,6e-05]
[1673702424247,0.03241201,20821.0,20817.0,6e-05]
[1673702424488,0.51913137,20821.0,20817.0,6e-05]
[1673702424737,0.10319871,20820.0,20817.0,6e-05]
[1673702424996,0.13561072,20820.0,20817.0,6e-05]
[1673702425257,0.99866617,20820.0,20817.0,6e-05]
[1673702425500,0.96620841,20820.0,20817.0,6e-05]
[1673702427231,0.1,20818.0,20817.0,6e-05]
[1673702428034,1.69425156,20819.0,20817.0,6e-05]
[1673702428292,1.080331,20819.0,20817.0,6e-05]
[1673702428801,0.1,20818.0,20817.0,6e-05]
[1673702429058,1.56536002,20819.0,20817.0,6e-05]
[1673702429302,1.97756796,20819.0,20817.0,6e-05]
[1673702429547,0.1,20818.0,20817.0,6e-05]
[1673702429819,0.580353,20818.0,20817.0,6e-05]
[1673702430335,1.36501324,20818.0,20817.0,6e-05]
[1673702430581,1.49331324,20818.0,20817.0,6e-05]
[1673702430838,1.80200772,20818.0,20817.0,6e-05]
[1673702432123,0.28506523,20818.0,20817.0,0.19078595]
[1673702432373,0.28506523,20818.0,20817.0,6e-05]
[1673702432374,0.2976025,20818.0,20817.0,6e-05]
[1673702433139,0.01253727,20818.0,20817.0,6e-05]
[1673702433642,0.15540004,20818.0,20817.0,6e-05]
[1673702433902,0.01253727,20818.0,20817.0,6e-05]
[1673702435478,0.14163727,20818.0,20817.0,6e-05]
[1673702435737,0.44163727,20818.0,20817.0,6e-05]
[1673702435997,1.5598078,20818.0,20817.0,6e-05]
[1673702436238,2.54650376,20818.0,20817.0,6e-05]
[1673702436495,2.70654606,20818.0,20817.0,6e-05]
[1673702436747,2.70654606,20818.0,20814.0,0.01690966]
[1673702436748,0.00010211,20816.0,20814.0,0.01690966]
[1673702436994,1.060844,20815.0,20814.0,9.66e-06]
[1673702437247,2.00386112,20815.0,20812.0,0.0169702]
[1673702437494,0.33241201,20814.0,20812.0,0.0169702]
[1673702437755,0.1291,20813.0,20812.0,0.0169702]
[1673702438257,0.0582,20814.0,20812.0,0.0169702]
[1673702438511,1.07149211,20816.0,20813.0,0.26022158]
[1673702438512,1.04570211,20816.0,20813.0,0.26022158]
[1673702438773,1.04570211,20816.0,20813.0,0.19072595]
[1673702439022,1.04570211,20816.0,20813.0,0.51657175]
[1673702439023,0.27285884,20815.0,20813.0,0.51657175]
[1673702439270,0.27285884,20815.0,20813.0,0.47529869]
[1673702439520,0.00010211,20816.0,20813.0,1.14646925]
[1673702439767,0.00010211,20816.0,20814.0,0.1]
[1673702440014,0.00010211,20816.0,20814.0,0.580432]
[1673702440263,0.00010211,20816.0,20812.0,0.4974512]
[1673702440264,0.03241201,20815.0,20812.0,0.0169702]
[1673702440531,0.05820201,20815.0,20812.0,0.0169702]
[1673702440779,0.1291,20814.0,20812.0,0.0169702]
[1673702441279,0.4291,20814.0,20812.0,0.0169702]
[1673702441773,0.44101237,20813.0,20812.0,0.0169702]
[1673702442019,0.31261237,20813.0,20812.0,0.0169702]
[1673702442824,0.1291,20815.0,20812.0,0.0169702]
[1673702443056,0.30842446,20813.0,20812.0,0.0169702]
[1673702444566,0.30848446,20813.0,20812.0,0.0169702]
[1673702445061,0.14027467,20813.0,20812.0,0.0169702]
[1673702445320,6e-05,20813.0,20812.0,0.0169702]
[1673702445828,0.608928,20813.0,20812.0,0.0169702]
[1673702446097,1.41885428,20813.0,20812.0,0.0169702]
[1673702446598,1.46754759,20813.0,20812.0,0.0169702]
[1673702446848,9.00432681,20813.0,20812.0,0.0169702]
[1673702447360,8.74857095,20813.0,20812.0,0.0169702]
[1673702447876,0.0158139,20811.0,20810.0,0.0169702]
[1673702448128,1.46098018,20811.0,20810.0,0.0169702]
[1673702448378,1.50914195,20811.0,20810.0,0.0169702]
[1673702448630,2.28324412,20811.0,20810.0,0.0169702]
[1673702448896,1.80914195,20811.0,20810.0,0.0169702]
[1673702449155,1.80914195,20811.0,20808.0,0.02839513]
[1673702449156,3.17695565,20811.0,20808.0,0.02839513]
[1673702449407,0.53192253,20809.0,20800.0,0.0010719]
[1673702449666,0.5096137,20808.0,20800.0,0.0010719]
[1673702449915,0.2572,20801.0,20800.0,0.0010719]
[1673702450174,0.1285,20801.0,20800.0,0.0795919]
[1673702450439,2.24656836,20808.0,20800.0,0.0795919]
[1673702450440,0.04841376,20805.0,20802.0,0.27245507]
[1673702450957,0.480613,20807.0,20802.0,0.27245507]
[1673702451219,0.480638,20806.0,20802.0,0.46318102]
[1673702451458,0.480638,20806.0,20800.0,0.0010719]
[1673702451730,0.33499607,20805.0,20801.0,0.30880682]
[1673702451978,0.04947914,20808.0,20802.0,0.54078642]
[1673702452231,0.23722103,20807.0,20803.0,0.47671967]
[1673702452491,0.0476579,20806.0,20804.0,0.321118]
[1673702452735,0.0476579,20806.0,20800.0,0.0010719]
[1673702452736,0.0641411,20806.0,20800.0,0.0010719]
[1673702452987,0.0641411,20806.0,20800.0,0.30678445]
[1673702452988,0.03241201,20805.0,20800.0,0.30678445]
[1673702453230,0.03241201,20805.0,20800.0,0.0010719]
[1673702453231,0.03241201,20804.0,20800.0,0.0010719]
[1673702453493,0.03241201,20803.0,20800.0,0.0010719]
[1673702453786,0.02579,20802.0,20800.0,0.0010719]
[1673702454033,0.53021712,20805.0,20800.0,0.0010719]
[1673702454287,0.29992543,20803.0,20800.0,0.19179785]
[1673702454530,0.04955712,20805.0,20800.0,0.0010719]
[1673702454779,0.23619036,20803.0,20800.0,0.52235815]
[1673702455026,0.23619036,20803.0,20800.0,0.3316322]
[1673702455279,0.21026913,20805.0,20801.0,0.25284882]
[1673702455280,0.40909359,20805.0,20801.0,0.25284882]
[1673702455531,0.25152548,20804.0,20801.0,1.04584544]
[1673702455786,0.25152548,20804.0,20801.0,0.73357282]
[1673702456033,0.04955712,20805.0,20801.0,0.73357282]
[1673702456034,0.24024796,20803.0,20801.0,0.73357282]
[1673702456294,0.03241201,20803.0,20800.0,0.0010719]
[1673702456534,0.32699242,20801.0,20800.0,0.0010719]
[1673702456792,0.03241201,20803.0,20800.0,0.0010719]
[1673702456793,0.51311501,20803.0,20800.0,0.0010719]
[1673702457041,0.03594044,20801.0,20800.0,0.0010719]
[1673702457284,0.480703,20803.0,20800.0,0.0010719]
[1673702457542,0.24512839,20802.0,20800.0,0.0010719]
[1673702457830,0.28641033,20802.0,20800.0,0.0010719]
[1673702458328,0.480703,20803.0,20800.0,0.0010719]
[1673702458580,0.31455382,20802.0,20800.0,0.0010719]
[1673702458844,0.00078192,20798.0,20797.0,0.29632935]
[1673702459079,0.03319393,20798.0,20797.0,0.29632935]
[1673702459330,0.03319393,20798.0,20794.0,0.31012605]
[1673702459331,0.29089639,20798.0,20794.0,0.31012605]
[1673702459590,0.03319393,20798.0,20797.0,0.2784742]
[1673702459842,0.00078192,20798.0,20797.0,0.2784742]
[1673702460584,0.00078192,20798.0,20797.0,0.29459651]
[1673702460849,0.00078192,20798.0,20797.0,0.06959651]
[1673702461639,0.00078192,20798.0,20797.0,0.1]
[1673702461889,0.00078192,20798.0,20797.0,0.580838]
[1673702462151,0.00078192,20798.0,20797.0,1.80825769]
[1673702462398,0.00078192,20798.0,20797.0,1.50825769]
[1673702462670,0.00078192,20798.0,20797.0,1.80825769]
[1673702462921,0.00078192,20798.0,20797.0,2.28235986]
[1673702463686,0.00078192,20798.0,20797.0,1.98235986]
[1673702464947,0.00078192,20798.0,20797.0,2.28235986]
[1673702465194,0.45885413,20808.0,20798.0,0.1]
[1673702465457,0.04838806,20802.0,20801.0,1.442238]
[1673702465704,0.33596241,20809.0,20801.0,2.73120764]
[1673702465973,0.02893084,20809.0,20802.0,1.65990972]
[1673702466220,0.02893084,20809.0,20803.0,1.65914441]
[1673702466472,0.02893084,20809.0,20805.0,0.2285]
[1673702466719,0.02893084,20809.0,20806.0,2.55985564]
[1673702466970,0.02893084,20809.0,20807.0,0.88372364]
[1673702467231,0.02893084,20809.0,20808.0,1.282089]
[1673702467487,0.02893084,20809.0,20808.0,1.41124477]
[1673702467740,0.02893084,20809.0,20808.0,1.51124477]
[1673702467996,0.02893084,20809.0,20808.0,2.43654168]
[1673702468246,0.02893084,20809.0,20808.0,2.54581573]
[1673702468998,0.02416825,20809.0,20808.0,2.54581573]
[1673702469244,0.02416825,20809.0,20808.0,2.24581573]
[1673702469489,0.02416825,20809.0,20808.0,2.59450904]
[1673702471516,0.02416825,20809.0,20808.0,2.54581573]
[1673702471764,0.02416825,20809.0,20808.0,1.54627213]
[1673702471765,0.05664026,20809.0,20808.0,1.54627213]
[1673702472026,0.02422825,20809.0,20808.0,1.54627213]
[1673702472276,0.02422825,20809.0,20808.0,1.75929069]
[1673702472552,0.02422825,20809.0,20808.0,2.03133986]
[1673702472836,8.25e-06,20809.0,20808.0,2.28953986]
[1673702473064,3.9e-06,20811.0,20809.0,0.2607076]
[1673702473307,3.9e-06,20811.0,20810.0,2.13457769]
[1673702473554,3.9e-06,20811.0,20810.0,2.81427152]
[1673702473807,3.9e-06,20811.0,20810.0,2.46557821]
[1673702474065,3.9e-06,20811.0,20810.0,0.6963]
[1673702474560,3.9e-06,20811.0,20810.0,0.480538]
[1673702474811,3.9e-06,20811.0,20810.0,0.95773969]
[1673702475064,3.9e-06,20811.0,20810.0,1.27885769]
[1673702475355,3.9e-06,20811.0,20810.0,1.57649117]
[1673702476100,3.9e-06,20811.0,20810.0,1.87649117]
[1673702476350,3.9e-06,20811.0,20810.0,1.57649117]
[1673702477114,3.9e-06,20811.0,20810.0,1.09928948]
[1673702477371,3.9e-06,20811.0,20810.0,1.57649117]
[1673702477618,0.17837046,20816.0,20810.0,1.87649117]
[1673702477864,0.17837046,20816.0,20811.0,1.18011436]
[1673702478113,0.17837046,20816.0,20812.0,1.95325495]
[1673702478374,0.17837046,20816.0,20813.0,0.2157652]
[1673702478632,0.99393456,20818.0,20814.0,0.96089]
[1673702478890,0.99393456,20818.0,20815.0,0.30591447]
[1673702478891,1.32357355,20818.0,20815.0,0.30591447]
[1673702479143,0.10475031,20820.0,20816.0,0.96792764]
[1673702479383,0.10475031,20820.0,20817.0,1.08904564]
[1673702479641,0.10475031,20820.0,20818.0,0.40604195]
[1673702479912,0.10475031,20820.0,20819.0,0.41940936]
[1673702480148,0.10475031,20820.0,20819.0,1.19973936]
[1673702480394,0.10475031,20820.0,20819.0,0.89473936]
[1673702481406,0.10475031,20820.0,20819.0,1.37194105]
[1673702481680,0.10475031,20820.0,20819.0,1.67194105]
[1673702481958,0.10475031,20820.0,20819.0,1.79994105]
[1673702482207,0.10475031,20820.0,20819.0,1.89994105]
[1673702482706,0.10475031,20820.0,20819.0,1.59994105]
[1673702483217,0.00484886,20825.0,20820.0,0.11047503]
[1673702483458,0.00484886,20825.0,20821.0,2.97534025]
[1673702483701,0.00484886,20825.0,20823.0,0.1291]
[1673702483957,0.00484886,20825.0,20824.0,2.26219669]
[1673702484218,0.00484886,20825.0,20824.0,1.655895]
[1673702484972,0.00484886,20825.0,20821.0,0.27104161]
[1673702484973,0.00484886,20825.0,20822.0,0.480257]
[1673702485233,0.00484886,20825.0,20821.0,0.79724024]
[1673702485234,0.03726087,20825.0,20821.0,0.79724024]
[1673702485726,0.03241201,20824.0,20821.0,0.48028]
[1673702485992,0.03241201,20823.0,20820.0,0.54040067]
[1673702486486,0.03241201,20823.0,20820.0,0.06010367]
[1673702486487,0.63241201,20823.0,20820.0,0.06010367]
[1673702486987,0.3,20822.0,20820.0,0.06010367]
[1673702487259,0.2284,20821.0,20820.0,0.06010367]
[1673702487513,0.2284,20821.0,20815.0,0.11518852]
[1673702487514,0.1,20820.0,20815.0,0.11518852]
[1673702487772,0.6,20818.0,20812.0,0.29737405]
[1673702488016,0.03241201,20817.0,20812.0,0.42321566]
[1673702488280,1.048,20820.0,20813.0,0.57720169]
[1673702488524,1.048,20820.0,20818.0,0.2947072]
[1673702488781,0.480272,20822.0,20815.0,0.480422]
[1673702489038,1.38041201,20821.0,20816.0,0.50446992]
[1673702489546,1.98900101,20821.0,20816.0,0.19072595]
[1673702489790,0.23990226,20820.0,20816.0,0.19072595]
[1673702490040,0.23990226,20820.0,20815.0,0.31703697]
[1673702490041,0.27231427,20820.0,20815.0,0.31703697]
[1673702490289,0.03241201,20820.0,20815.0,0.50776292]
[1673702490535,0.03241201,20819.0,20815.0,0.31703697]
[1673702490789,0.33241201,20819.0,20815.0,0.31703697]
[1673702491028,0.33241201,20819.0,20809.0,0.480547]
[1673702491029,0.03241201,20818.0,20809.0,0.480547]
[1673702491285,0.51280701,20817.0,20811.0,0.31969443]
[1673702491526,0.33241201,20816.0,20811.0,0.39971857]
[1673702491782,0.03241201,20815.0,20811.0,0.39971857]
[1673702492046,0.03241201,20814.0,20811.0,0.31969443]
[1673702492297,0.03241201,20814.0,20809.0,0.480547]
[1673702492559,0.27845399,20813.0,20810.0,0.2380574]
[1673702492803,0.24604198,20813.0,20810.0,0.83851124]
[1673702496107,0.24604198,20813.0,20810.0,0.7185944]
[1673702498130,0.24604198,20813.0,20811.0,0.25955396]
[1673702498383,0.24604198,20813.0,20810.0,0.480537]
[1673702498636,0.24604198,20813.0,20809.0,0.480547]
[1673702498637,0.03241201,20813.0,20809.0,0.480547]
[1673702498882,0.03241201,20812.0,20807.0,0.89098131]
[1673702499131,0.03241201,20811.0,20807.0,0.31038831]
[1673702499390,0.03241201,20810.0,20806.0,0.480611]
[1673702499644,0.68653046,20813.0,20806.0,0.480611]
[1673702499645,0.03241201,20809.0,20806.0,0.480611]
[1673702499883,0.28083679,20808.0,20806.0,0.75229843]
[1673702501149,0.28083679,20808.0,20806.0,0.480611]
[1673702501701,0.28083679,20808.0,20805.0,0.74136129]
[1673702501909,0.28083679,20808.0,20805.0,0.99794997]
[1673702502956,0.28083679,20808.0,20805.0,0.74136129]
[1673702503454,0.3132488,20808.0,20805.0,0.74136129]
[1673702503705,1.55239905,20811.0,20804.0,0.480662]
[1673702503706,2.03291505,20811.0,20804.0,0.480662]
[1673702503961,0.03241201,20810.0,20804.0,0.480662]
[1673702504236,1.09356401,20809.0,20803.0,0.0164745]
[1673702504492,0.50020509,20808.0,20803.0,0.44272869]
[1673702504751,0.70974675,20810.0,20806.0,0.27498909]
[1673702504987,1.0359,20811.0,20805.0,0.1]
[1673702505256,0.04775685,20808.0,20807.0,0.75013531]
[1673702505504,1.36967807,20811.0,20808.0,0.07501353]
[1673702505761,1.41857015,20811.0,20808.0,0.19072595]
[1673702506020,1.41857015,20811.0,20807.0,0.480606]
[1673702506021,0.04889208,20811.0,20807.0,0.480606]
[1673702506262,0.04889208,20811.0,20808.0,0.67130295]
[1673702506514,0.31641811,20813.0,20809.0,0.321118]
[1673702506760,0.36492111,20813.0,20810.0,1.51430021]
[1673702507007,0.048503,20813.0,20808.0,0.480565]
[1673702507286,0.2685393,20809.0,20808.0,0.480565]
[1673702507785,0.03241201,20813.0,20808.0,0.480565]
[1673702508039,0.31163923,20811.0,20808.0,0.67129095]
[1673702508318,0.31163923,20811.0,20808.0,0.8151537]
[1673702508554,0.31163923,20811.0,20808.0,0.99279167]
[1673702509298,1.16623136,20813.0,20808.0,1.32613061]
[1673702509558,1.16623136,20813.0,20809.0,0.96792764]
[1673702509559,0.04941935,20813.0,20809.0,0.96792764]
[1673702509823,0.04941935,20813.0,20810.0,1.91880069]
[1673702510073,0.04941935,20813.0,20811.0,0.46508949]
[1673702510326,0.27832353,20815.0,20812.0,0.480492]
[1673702510587,2.345158,20818.0,20813.0,0.19072595]
[1673702510588,0.0482945,20816.0,20813.0,0.19072595]
[1673702510840,0.0482945,20816.0,20814.0,1.47273395]
[1673702511095,0.0482945,20816.0,20815.0,0.3926764]
[1673702511345,0.25478258,20818.0,20815.0,0.6576954]
[1673702511595,0.25478258,20818.0,20815.0,0.84842135]
[1673702512150,0.05513746,20820.0,20815.0,0.84842135]
[1673702512393,0.05513746,20820.0,20816.0,0.19072595]
[1673702512394,0.26252818,20819.0,20816.0,0.19072595]
[1673702512638,0.26252818,20819.0,20817.0,0.29530764]
[1673702513409,0.05513746,20820.0,20818.0,0.19072595]
[1673702513637,0.05513746,20820.0,20819.0,2.43003564]
[1673702513890,0.0060249,20820.0,20819.0,2.73003564]
[1673702514131,0.0060249,20820.0,20819.0,2.84718258]
[1673702514879,0.37066614,20820.0,20819.0,1.281778]
[1673702515130,0.0060249,20820.0,20819.0,0.321118]
[1673702515381,0.30284062,20819.0,20817.0,0.78274037]
[1673702515633,0.0060249,20820.0,20817.0,0.78274037]
[1673702515634,0.0060249,20820.0,20818.0,0.73983619]
[1673702516882,0.0060249,20820.0,20819.0,0.30360259]
[1673702517887,0.0060249,20820.0,20818.0,1.54103]
[1673702518131,0.0060249,20820.0,20819.0,0.58568622]
[1673702518382,0.0060249,20820.0,20819.0,0.90674506]
[1673702518623,0.0060249,20820.0,20818.0,0.48035]
[1673702518624,0.30100287,20819.0,20818.0,0.48035]
[1673702519414,0.31545632,20820.0,20818.0,0.48035]
[1673702520406,0.32458438,20819.0,20817.0,0.78832932]
[1673702520879,0.32458438,20819.0,20817.0,0.480358]
[1673702521644,0.32458438,20819.0,20817.0,0.78612609]
[1673702521900,0.0060249,20820.0,20817.0,0.78612609]
[1673702521901,0.0060249,20820.0,20819.0,0.0785854]
[1673702522156,0.0060249,20820.0,20819.0,1.55108935]